[Event "Grand Prix Romania 1st Stage 2024"]
[Site "Bucuresti"]
[Date "2024.03.23"]
[Round "1.1"]
[White "Motylev, Alexander"]
[Black "Jiros, Doru"]
[Result "1-0"]
[ECO "B01"]
[WhiteElo "2611"]
[BlackElo "1871"]
[Annotator "TA"]
[PlyCount "37"]
[EventDate "2024.03.20"]
[EventCountry "ROU"]
[SourceTitle "playchess.com"]
[Source "ChessBase"]
[SourceQuality "1"]
[TimeControl "900+5"]

{[%evp 9,37,20,26,29,80,73,63,64,79,49,63,70,156,152,222,218,252,245,247,240,318,229,332,273,510,514,1362,1347,1326,1310]} 1. e4 {[%emt 0:00:02]} d5 {[%emt 0:00:01]} 2. exd5 {[%emt 0:00:07]} Qxd5 {[%emt 0:00:02]} 3. Nc3 {[%emt 0:00:01]} Qd8 {[%emt 0:00:02]} 4. d4 {[%emt 0:00:07]} Nf6 {[%emt 0:00:06]} 5. Bg5 {[%emt 0:00:08]} h6 {[%emt 0:00:05]} 6. Bh4 {[%emt 0:00:08]} Bf5 {[%emt 0:00:08]} (6... c6 $11 {bleibt in der Remisbreite.}) 7. Bd3 $16 {[%emt 0:00:39]} Bxd3 {[%emt 0:00:13]} 8. Qxd3 {[%emt 0:00:01] Weiß steht etwas besser.} c6 {[%emt 0:00:32]} 9. Bxf6 {[%emt 0:00:20]} exf6 {[%emt 0:00:17]} 10. O-O-O {[%emt 0:00:02] Und d5 würde nun gewinnen.} Be7 {[%emt 0:00:48]} ({Günstiger ist} 10... Bb4 $14) 11. d5 {[%emt 0:00:31] Weiß steht aktiver.} Qd6 {[%emt 0:08:45] Schwarz ist schwach auf den weissen Feldern} (11... cxd5 $16 12. Qg3 (12. Qxd5 Nc6 $14) (12. Nxd5 O-O $16) 12... Kf8) 12. dxc6 $18 {[%emt 0:01:18]} Qf4+ {[%emt 0:00:19]} ({Vergiftet wäre} 12... Qxd3 $2 13. cxb7 (13. Rxd3 Nxc6 14. Nf3 Rd8 $14) 13... Qa6 (13... Qxd1+ $2 14. Nxd1 O-O 15. bxa8=Q $18) 14. bxa8=Q $18 (14. bxa8=R $2 O-O $19)) 13. Kb1 {[%emt 0:00:21]} bxc6 {[%emt 0:00:59]} 14. Nge2 {[%emt 0:01:32][%cal Bg1e2,Be2g3,Bg3f5][%mdl 32]} Qc7 {[%emt 0:00:03]} 15. Ng3 $40 {[%emt 0:00:24][%mdl 128] Weiss greift entschieden an.} O-O {[%emt 0:00:22]} (15... g6 $142 16. h4 h5) 16. Nf5 {[%emt 0:00:02]} Re8 $2 {[%emt 0:00:18]} (16... Bb4 17. a3 Ba5) 17. Rhe1 {[%emt 0:00:15] [#] Und jetzt Nxe7+ wäre schön. Weiß steht klar auf Gewinn.} a5 {[%emt 0:01:23]} (17... Na6 $142 18. Rxe7 (18. Qxa6 Bf8 $18) 18... Rxe7 19. Nxe7+ (19. Qxa6 Re6 $18) 19... Qxe7 20. Qxa6 Qc5) 18. Nxe7+ {[%emt 0:00:30]} Rxe7 {[%emt 0:00:08]} 19. Qd8+ {[%emt 0:00:08] Nach der Eröffnung ein Spiel auf ein Tor.   Gewichteter Fehlerwert: Weiß=0.11 (sehr präzise) /Schwarz=0.52.  Fehler:       	---       	Schwarz=6     Ungenau:       	Weiß=1     	---        OK:         	Weiß=7     	Schwarz=3     Bester:       	Weiß=2     	Schwarz=1} 1-0

[Event "Grand Prix Romania 1st Stage 2024"]
[Site "Bucuresti"]
[Date "2024.03.23"]
[Round "1.2"]
[White "Atanasov, Aleksandar"]
[Black "Ponomariov, Ruslan"]
[Result "0-1"]
[ECO "B50"]
[WhiteElo "1820"]
[BlackElo "2646"]
[Annotator "TA"]
[PlyCount "114"]
[EventDate "2024.03.20"]
[EventCountry "ROU"]
[SourceTitle "playchess.com"]
[Source "ChessBase"]
[SourceQuality "1"]
[TimeControl "900+5"]

{[%evp 9,114,14,30,12,23,22,32,18,20,11,45,36,43,37,59,57,58,0,6,9,2,0,27,31,27,0,0,-14,0,0,0,-13,-15,-57,-68,-67,-66,-82,-81,-144,-155,-149,-154,-170,-163,-160,-151,-183,-181,-171,-175,-215,-139,-142,-121,-124,-110,-116,-116,-136,-130,-143,-125,-152,-154,-155,-119,-240,-221,-260,-250,-312,-320,-452,-435,-443,-248,-1084,-1016,-1033,-514,-514,-427,-492,-490,-591,-570,-871,-819,-888,-881,-1120,-1021,-1412,-1507,-29966,-29967,-29970,-29971,-29968,-29970,-29983,-29984,-29985,-29986,-29985,-29986]} 1. e4 {[%emt 0:00:03]} c5 {[%emt 0:00:02]} 2. Nf3 {[%emt 0:00:10]} d6 {[%emt 0:00:02]} 3. c3 {[%emt 0:00:05]} Nf6 {[%emt 0:00:04]} 4. Be2 {[%emt 0:00:13]} Bd7 {[%emt 0:00:43]} 5. Qc2 {[%emt 0:00:58]} Bc6 {[%emt 0:00:59]} 6. d3 {[%emt 0:00:44]} Nbd7 {[%emt 0:00:03]} 7. O-O {[%emt 0:00:20]} g6 {[%emt 0:00:50]} 8. Be3 {[%emt 0:01:09] White is slightly better.} Bg7 {[%emt 0:00:06]} 9. Nbd2 {[%emt 0:00:14]} Rc8 {[%emt 0:00:11]} 10. d4 {[%emt 0:00:34]} cxd4 {[%emt 0:00:17]} 11. Nxd4 {[%emt 0:00:13]} (11. cxd4 Bxe4 12. Qb3 Bd5 $17) 11... O-O {[%emt 0:00:18]} 12. Nxc6 {[%emt 0:01:15]} Rxc6 {[%emt 0:00:45]} 13. Nc4 {[%emt 0:01:48]} (13. Bxa7 b6 14. a4 Qa8 15. Bxb6 (15. Bb5 Rc7 $17) 15... Rxb6 $17 (15... Nxb6 16. a5 $17)) (13. Rad1 $14) 13... a6 {[%emt 0:00:31]} 14. a4 {[%emt 0:01:19]} Qc7 {[%emt 0:00:49]} 15. Nd2 {[%emt 0:01:10][%cal Bc4d2,Bd2f3,Bf3d4][%mdl 32]} Rc8 {[%emt 0:00:44]} 16. Rfd1 {[%emt 0:02:04]} e6 {[%emt 0:00:38]} 17. h3 {[%emt 0:00:36]} d5 {[%emt 0:00:36]} 18. Bf3 {[%emt 0:00:54]} Ne5 {[%emt 0:00:19]} 19. exd5 {[%emt 0:00:11]} Nxf3+ {[%emt 0:01:19]} 20. Nxf3 {[%emt 0:00:04]} Nxd5 {[%emt 0:00:02]} 21. Nd4 {[%emt 0:00:24]} Nxe3 {[%emt 0:00:30]} 22. fxe3 {[%emt 0:00:01]} Rc5 {[%emt 0:00:06]} 23. Rf1 {[%emt 0:00:30]} Re5 {[%emt 0:01:28]} 24. Rf3 {[%emt 0:00:22] [#]} ({White should try} 24. e4) 24... Rxe3 $3 $17 {[%emt 0:00:15][%mdl 512]} 25. Rxe3 {[%emt 0:01:49]} Bxd4 {[%emt 0:05:33]} 26. Qd3 {[%emt 0:00:00]} Bxe3+ {[%emt 0:00:00]} 27. Qxe3 $19 {[%emt 0:00:00][%mdl 4096] Endgame. KQR-KQR} Rd8 {[%emt 0:00:00]} 28. Qe2 {[%emt 0:00:00]} Qb6+ {[%emt 0:00:00]} 29. Kh1 {[%emt 0:00:00]} Rd5 {[%emt 0:00:00]} 30. Rd1 {[%emt 0:00:00]} Rf5 {[%emt 0:00:00]} 31. b4 {[%emt 0:00:16]} h5 {[%emt 0:00:00]} 32. a5 {[%emt 0:00:03]} Qc7 {[%emt 0:00:00]} 33. Qe3 {[%emt 0:00:01]} Kh7 {[%emt 0:00:00]} 34. Rc1 {[%emt 0:00:16]} Qc4 {[%emt 0:00:00]} 35. Re1 {[%emt 0:00:06]} Kg7 {[%emt 0:00:00]} 36. Kg1 {[%emt 0:00:01]} Rd5 {[%emt 0:00:00]} 37. Rf1 {[%emt 0:00:06]} e5 {[%emt 0:00:00]} 38. Qf3 {[%emt 0:00:03] White does not recover from this.} (38. Qg5 $17 {was necessary.} Qc7 (38... Qxc3 $2 39. Qe7 $18) 39. c4) 38... f5 {[%emt 0:00:02] Active counter play!} 39. Qe3 {[%emt 0:00:06]} e4 {[%emt 0:00:09]} 40. Qb6 {[%emt 0:00:01]} Rd7 {[%emt 0:00:07]} (40... Qxc3 $2 {perishes.} 41. Qxb7+ Kh6 42. Qxd5 $18) 41. Rc1 {[%emt 0:00:07]} (41. Qe3 {is a better defense.}) 41... Qd3 {[%emt 0:00:09] aiming for ...Qd2.} ({Don't do} 41... f4 42. Qf2 g5 43. Kh2 $19) 42. Qc5 {[%emt 0:00:07]} Qd5 {[%emt 0:00:20]} (42... Qd2 $142 43. Rb1 e3 44. Qe5+ Kf7) 43. Qb6 $2 {[%emt 0:00:03]} (43. Qxd5 Rxd5 44. c4) 43... Qd2 {[%emt 0:00:04]} 44. Rf1 {[%emt 0:00:06]} Qxc3 {[%emt 0:00:05]} (44... e3 $142 {[%cal Oe3e2] Hoping for ...e2!} 45. Qe6 e2) 45. Qe6 {[%emt 0:00:03]} Qd4+ {[%emt 0:00:08]} 46. Kh1 {[%emt 0:00:02]} Qd6 {[%emt 0:00:04]} 47. Qc4 {[%emt 0:00:06]} Qd3 {[%emt 0:00:03]} 48. Qc1 {[%emt 0:00:03]} e3 {[%emt 0:00:04]} 49. Re1 {[%emt 0:00:07]} f4 {[%emt 0:00:01] White must now prevent ...Qd2.} 50. Qb2+ {[%emt 0:00:02]} Qd4 {[%emt 0:00:01]} 51. Qe2 {[%emt 0:00:02]} Qd2 {[%emt 0:00:02]} 52. Qf1 {[%emt 0:00:02]} Qf2 {[%emt 0:00:02] Black mates.} 53. Qxf2 exf2 {[%emt 0:00:01]} 54. Rf1 {[%emt 0:00:04]} Rd2 {[%emt 0:00:01]} 55. Kh2 {[%emt 0:00:01]} h4 {[%emt 0:00:00]} 56. Rb1 {[%emt 0:00:10]} Re2 {[%emt 0:00:02]} 57. Rf1 {[%emt 0:00:02]} Kf6 {[%emt 0:00:01] Weighted Error Value: White=0.65/Black=0.21 (precise) .  Mistake:       	White=5     	Black=1      Inaccurate:     	White=3     	Black=3      OK:         	White=11    	Black=19     Best:        	---       	Black=4} 0-1

[Event "Grand Prix Romania 1st Stage 2024"]
[Site "Bucuresti"]
[Date "2024.03.23"]
[Round "1.3"]
[White "Sarana, Alexey"]
[Black "Zanfir, Iulian"]
[Result "1-0"]
[ECO "E54"]
[WhiteElo "2699"]
[BlackElo "1786"]
[Annotator "TA"]
[PlyCount "31"]
[EventDate "2024.03.20"]
[EventCountry "ROU"]
[SourceTitle "playchess.com"]
[Source "ChessBase"]
[SourceQuality "1"]
[TimeControl "900+5"]

{[%evp 19,31,52,70,52,108,90,187,177,194,210,981,959,1031,1035]} 1. c4 {[%emt 0:00:02]} c6 {[%emt 0:00:05]} 2. e4 {[%emt 0:00:03]} d5 {[%emt 0:00:10]} 3. exd5 {[%emt 0:00:02]} cxd5 {[%emt 0:00:05]} 4. d4 {[%emt 0:00:02]} Nf6 {[%emt 0:00:33]} 5. Nc3 {[%emt 0:00:02]} e6 {[%emt 0:00:54]} 6. Nf3 {[%emt 0:00:03]} Nc6 {[%emt 0:00:16]} 7. Bd3 {[%emt 0:00:25]} Bb4 {[%emt 0:00:50]} 8. O-O {[%emt 0:00:06]} Bxc3 {[%emt 0:00:11]} 9. bxc3 {[%emt 0:00:02]} dxc4 {[%emt 0:00:17]} 10. Bxc4 {[%emt 0:00:05]} O-O {[%emt 0:00:33]} 11. Bg5 {[%emt 0:00:07]} a6 {[%emt 0:01:56]} ({Better is} 11... b6 $14) 12. Bd3 $16 {[%emt 0:00:09] White is more active.} b5 {[%emt 0:01:00]} (12... h6 $16) 13. Ne5 $18 {[%emt 0:01:05]} Bb7 {[%emt 0:00:17]} 14. Ng4 {[%emt 0:01:14] Hoping for Nxf6+.} Kh8 $2 {[%emt 0:01:22]} (14... Nxd4 15. cxd4 Qd5) 15. Nxf6 {[%emt 0:00:17][%cal Od1h5] Threatening mate with Qh5!} gxf6 {[%emt 0:00:35] [#]} 16. Qh5 $1 {[%emt 0:00:04] White took control after the opening.   Weighted Error Value: White=0.00 (flawless) /Black=0.51.  Mistake:       	---       	Black=3      OK:         	White=3     	---        Best:        	White=1     	---} 1-0

[Event "Grand Prix Romania 1st Stage 2024"]
[Site "Bucuresti"]
[Date "2024.03.23"]
[Round "1.4"]
[White "Chicarosie, Ioana-Bianca"]
[Black "Deac, Bogdan-Daniel"]
[Result "0-1"]
[ECO "A40"]
[WhiteElo "1820"]
[BlackElo "2690"]
[Annotator "TA"]
[PlyCount "66"]
[EventDate "2024.03.20"]
[EventCountry "ROU"]
[SourceTitle "playchess.com"]
[Source "ChessBase"]
[SourceQuality "1"]
[TimeControl "900+5"]

{[%evp 9,66,9,12,-38,-12,-30,9,0,0,-5,11,6,-11,4,-5,-30,-16,-66,-61,-64,-64,-71,-68,-77,-39,-75,-26,-46,-43,-50,-12,-48,-28,-39,-41,-55,-52,-258,-248,-301,-297,-409,-379,-379,-331,-407,-332,-342,-319,-427,-408,-502,-445,-432,-376,-474,-476,-506,-510]} 1. d4 {[%emt 0:00:02]} g6 {[%emt 0:00:20]} 2. Nf3 {[%emt 0:00:10]} Bg7 {[%emt 0:00:04]} 3. Nbd2 {[%emt 0:00:48]} c5 {[%emt 0:01:20]} 4. d5 {[%emt 0:01:31]} Nf6 {[%emt 0:02:04]} 5. e4 {[%emt 0:01:08]} O-O {[%emt 0:00:02]} 6. g3 {[%emt 0:00:53]} ({White should play} 6. Bd3 $11) 6... d6 {[%emt 0:01:23]} 7. Bg2 {[%emt 0:00:47]} b5 {[%emt 0:00:02]} 8. c3 {[%emt 0:01:14] The position is equal.} e6 {[%emt 0:03:07]} 9. dxe6 {[%emt 0:01:07]} Bxe6 {[%emt 0:00:01]} 10. O-O {[%emt 0:00:27]} Nc6 {[%emt 0:00:14]} 11. Ng5 {[%emt 0:01:07] aiming for Nxe6.} Bg4 {[%emt 0:00:10]} 12. Qc2 {[%emt 0:00:40]} h6 {[%emt 0:00:23]} 13. Ngf3 {[%emt 0:00:29]} (13. Nh3 $11) 13... Re8 $15 {[%emt 0:00:02]} 14. h3 {[%emt 0:00:28]} Be6 {[%emt 0:00:42]} 15. Re1 {[%emt 0:00:08]} Qd7 {[%emt 0:01:12]} 16. Kh2 {[%emt 0:00:31]} Qc7 {[%emt 0:00:30] Black is more active.} 17. Nb3 {[%emt 0:00:20]} Nd7 {[%emt 0:01:23]} ({Better is} 17... Rab8 $17) 18. Bf4 {[%emt 0:01:14]} g5 {[%emt 0:00:07]} 19. Be3 {[%emt 0:00:09]} Rab8 {[%emt 0:01:15]} 20. Nbd2 {[%emt 0:00:43]} a5 {[%emt 0:00:12]} 21. a4 {[%emt 0:00:22]} b4 {[%emt 0:00:10]} 22. Rab1 {[%emt 0:00:52]} Nb6 {[%emt 0:00:36]} 23. c4 $2 {[%emt 0:00:20] [#] White does not recover from this.} ({White should try} 23. Bf1 $15) 23... b3 $1 $19 {[%emt 0:00:10][%mdl 512]} 24. Nxb3 {[%emt 0:00:26]} (24. Qc1 Nb4) 24... Nxc4 {[%emt 0:00:07]} 25. Nfd2 {[%emt 0:00:11]} Nb4 {[%emt 0:00:27]} 26. Qd1 {[%emt 0:00:02]} Nd3 {[%emt 0:00:29]} (26... Bxb2 $2 {perishes.} 27. Nxc4 Bc3 28. Nbd2 $18 (28. Ncxa5 Bxe1 29. Qxe1 Nc2 $14) (28. Nxd6 Red8 $18) (28. Qxd6 Qxd6 29. Nxd6 Bxe1 $18)) 27. Rf1 {[%emt 0:00:04]} Nxe3 {[%emt 0:00:13]} (27... Bxb2 $2 28. Nxc4 Bxc4 29. Nd2 $19) 28. fxe3 {[%emt 0:00:05]} Qb6 {[%emt 0:00:20]} ({Don't do} 28... Bxb2 29. Qc2 c4 30. Nd4 $19) 29. Nc1 {[%emt 0:00:16]} Nxb2 {[%emt 0:00:08]} 30. Qf3 {[%emt 0:00:07]} Qd8 {[%emt 0:00:06]} 31. Ne2 {[%emt 0:00:14]} Nd3 {[%emt 0:00:06]} 32. e5 {[%emt 0:00:21]} Nxe5 {[%emt 0:00:05]} ({Less strong is} 32... Bxe5 33. Rxb8 Qxb8 34. Nf4 gxf4 35. exf4 $19) 33. Qf2 {[%emt 0:00:04]} Rb4 {[%emt 0:00:04] Weighted Error Value: White=0.45/Black=0.18 (very precise) .  Loses game:     	White=1     	---        Mistake:       	White=1     	Black=1      Inaccurate:     	White=4     	Black=4      OK:         	White=7     	Black=12     Best:        	White=1     	---        Brilliant:      	---       	Black=1} 0-1

[Event "Grand Prix Romania 1st Stage 2024"]
[Site "Bucuresti"]
[Date "2024.03.23"]
[Round "1.5"]
[White "Safarli, Eltaj"]
[Black "Haineala, Iustin-Petru"]
[Result "1-0"]
[ECO "B13"]
[WhiteElo "2614"]
[BlackElo "1825"]
[Annotator "TA"]
[PlyCount "65"]
[EventDate "2024.03.20"]
[EventCountry "ROU"]
[SourceTitle "playchess.com"]
[Source "ChessBase"]
[SourceQuality "1"]
[TimeControl "900+5"]

{[%evp 18,65,25,0,19,4,70,86,139,145,127,136,137,87,243,230,322,248,619,610,581,382,701,700,731,739,735,724,707,735,707,708,959,970,975,979,1819,1516,1691,1729,1819,1706,29972,5422,29991,29968,29991,29991,29991,29992]} 1. e4 {[%emt 0:00:03]} c6 {[%emt 0:00:02]} 2. d4 {[%emt 0:00:07]} d5 {[%emt 0:00:02]} 3. exd5 {[%emt 0:00:01]} cxd5 {[%emt 0:00:01]} 4. c4 {[%emt 0:00:02]} Nf6 {[%emt 0:00:03]} 5. Nc3 {[%emt 0:00:01]} Nc6 {[%emt 0:00:03][%cal Bb8c6,Bc6e5,Be5d3][%mdl 32]} 6. Bg5 {[%emt 0:00:03]} dxc4 {[%emt 0:01:01]} 7. d5 {[%emt 0:00:03]} Ne5 {[%emt 0:00:22]} 8. Qd4 {[%emt 0:00:02]} Nd3+ {[%emt 0:00:27]} 9. Bxd3 {[%emt 0:00:02]} cxd3 {[%emt 0:00:02]} 10. Nf3 {[%emt 0:00:12][%cal Oe1g1]} h6 $1 {[%emt 0:00:38]} 11. Bf4 {[%emt 0:00:14][%cal Oe1g1]} d2+ {[%emt 0:00:50]} 12. Qxd2 {[%emt 0:00:11]} (12. Nxd2 {keeps more tension.} e6 13. d6 Qb6 14. Qxb6 axb6 15. Nc4) 12... a6 {[%emt 0:01:16] Repels Nb5} (12... g5 $142) 13. O-O $16 {[%emt 0:00:22]} g5 {[%emt 0:00:25]} 14. Be5 {[%emt 0:00:05] [#] Threatens to win with Bxf6.} Bg7 {[%emt 0:00:15]} 15. d6 {[%emt 0:00:18] White is more active.} ({White should play} 15. h4) 15... e6 $2 {[%emt 0:00:32] This costs Black the game.} (15... Be6 $16 {was worth a try.}) 16. Qd4 $18 {[%emt 0:00:46] And now Rfe1 would win.} O-O {[%emt 0:00:55][%cal Be8g8,Bg8h8,Bh8h7,Bh7g6][%mdl 32]} 17. Ne4 {[%emt 0:00:04]} Nh5 {[%emt 0:00:51] Black is weak on the dark squares} (17... Nxe4 18. Bxg7 Qxd6) 18. Bxg7 {[%emt 0:00:03]} Nxg7 {[%emt 0:00:01]} 19. d7 {[%emt 0:00:17]} Nf5 $2 {[%emt 0:01:17]} (19... f6 20. Rfd1 (20. dxc8=R Rxc8 21. Qb4 Rc7 $18) (20. dxc8=N Qxd4 21. Nxd4 Raxc8 $18) 20... Bxd7 21. Qxd7 Qxd7 22. Rxd7 g4) 20. Qe5 {[%emt 0:00:13]} Bxd7 {[%emt 0:00:44]} 21. Nf6+ {[%emt 0:00:02]} Kh8 {[%emt 0:00:11]} 22. Nxd7+ {[%emt 0:00:04] A dynamic duo of knights.} f6 {[%emt 0:00:03][%cal Bf7f6,Bf6f5,Bf5f4][%mdl 32]} 23. Qxe6 {[%emt 0:00:04]} Ng7 {[%emt 0:00:20]} 24. Qh3 {[%emt 0:00:03]} Kh7 {[%emt 0:00:15]} 25. Nxf8+ {[%emt 0:00:04]} Qxf8 {[%emt 0:00:01]} 26. Rad1 {[%emt 0:00:03]} f5 {[%emt 0:00:03]} 27. Nxg5+ {[%emt 0:00:02]} Kg6 {[%emt 0:00:03]} 28. Nf3 {[%emt 0:00:04] [#] aiming for Rd7.} Kh7 {[%emt 0:00:12]} 29. Rd7 {[%emt 0:00:03][%cal Of1d1] White wants to mate with Rfd1!} b5 {[%emt 0:00:23]} 30. Re1 {[%emt 0:00:06]} (30. Ng5+ $142 Kg6 31. Rfd1 hxg5 32. R1d6+ Qxd6 33. Rxd6+ Kf7 34. Qb3+ Ke7 35. Qd5) 30... Rc8 {[%emt 0:00:39]} 31. g3 {[%emt 0:00:05] White mates.} f4 {[%emt 0:00:38]} 32. Ree7 {[%emt 0:00:06]} Rc1+ {[%emt 0:00:49]} 33. Kg2 {[%emt 0:00:02] Weighted Error Value: White=0.34/Black=1.61.  Mistake:       	White=1     	Black=4      Inaccurate:     	---       	Black=1      OK:         	White=4     	Black=2      Best:        	White=1     	---} 1-0